fUST/lending_fUST_20250729
["ID","MTS","AMOUNT","RATE_DAILY","PERIOD"]
[375859978,1753763449955,-530.10996507,0.00020547,2]
[375859979,1753763449965,-460.0,0.00020547,2]
[375859980,1753763449975,-1784.78,0.00020547,2]
[375859981,1753763449984,-1674.87,0.00020547,2]
[375859982,1753763449993,-460.0,0.00020547,2]
[375859983,1753763450003,-460.0,0.00020547,2]
[375859984,1753763450013,-151.0,0.00020547,2]
[375859985,1753763450022,-683.26,0.00020547,2]
[375859986,1753763450031,-755.63,0.00020547,2]
[375859987,1753763450040,-460.0,0.00020547,2]
[375859988,1753763450050,-460.0,0.00020547,2]
[375859989,1753763450060,-460.0,0.00020547,2]
[375859990,1753763450070,-2065.79,0.00020547,2]
[375859991,1753763450080,-529.18,0.00020547,2]
[375859992,1753763450089,-460.0,0.00020547,2]
[375859993,1753763450098,-460.0,0.00020547,2]
[375859994,1753763450108,-460.0,0.00020547,2]
[375859995,1753763450118,-1500.0,0.00020568,2]
[375859996,1753763450127,-1196.68359494,0.00020568,2]
[375859997,1753763450138,-160.0,0.00020578,2]
[375859998,1753763450148,-3950.71476465,0.0002059,2]
[375859999,1753763450157,-500.0,0.00020692,2]
[375860000,1753763450167,-500.0,0.00020692,2]
[375860001,1753763450177,-500.0,0.00020692,2]
[375860002,1753763450187,-500.0,0.00020692,2]
[375860003,1753763450196,-500.0,0.00020692,2]
[375860004,1753763450206,-298.0,0.00020735,2]
[375860005,1753763450216,-500.0,0.0002082,2]
[375860006,1753763450225,-500.0,0.0002082,2]
[375860007,1753763450234,-280.95463787,0.0002082,2]
[375860008,1753763450244,-482.95733611,0.0002082,2]
[375860009,1753763450253,-500.0,0.0002082,2]
[375860010,1753763450262,-500.0,0.0002082,2]
[375860011,1753763450272,-396.44321715,0.00020821,2]
[375860012,1753763450282,-151.0,0.00020821,2]
[375860013,1753763450291,-151.0,0.00020821,2]
[375860014,1753763450301,-151.0,0.00020821,2]
[375860015,1753763450311,-151.0,0.00020821,2]
[375860016,1753763450321,-257.133657,0.00020821,2]
[375860017,1753763450331,-151.612625,0.00020821,2]
[375860018,1753763450341,-460.0,0.00020821,2]
[375860019,1753763450351,-151.0,0.00020821,2]
[375860020,1753763450361,-151.0,0.00020821,2]
[375860021,1753763450370,-151.0,0.00020821,2]
[375860022,1753763450380,-460.0,0.00020821,2]
[375860023,1753763450395,-460.0,0.00020821,2]
[375860024,1753763450404,-460.0,0.00020821,2]
[375860025,1753763450414,-520.3,0.00020821,2]
[375860026,1753763450425,-460.0,0.00020821,2]
[375860027,1753763450435,-460.0,0.00020821,2]
[375860028,1753763450446,-151.0,0.00020821,2]
[375860029,1753763450455,-460.0,0.00020821,2]
[375860030,1753763450465,-460.0,0.00020821,2]
[375860031,1753763450474,-460.0,0.00020821,2]
[375860032,1753763450484,-460.0,0.00020821,2]
[375860033,1753763450494,-460.0,0.00020821,2]
[375860034,1753763450503,-151.0,0.00020821,2]
[375860035,1753763450512,-460.0,0.00020821,2]
[375860036,1753763450522,-460.0,0.00020821,2]
[375860037,1753763450531,-460.0,0.00020821,2]
[375860038,1753763450541,-201.4397807,0.00020821,2]
[375860039,1753763450550,-460.0,0.00020821,2]
[375860040,1753763450560,-460.0,0.00020821,2]
[375860041,1753763450569,-514.06,0.00020821,2]
[375860042,1753763450579,-460.0,0.00020821,2]
[375860043,1753763450589,-460.0,0.00020821,2]
[375860044,1753763450597,-400.626578,0.00020821,2]
[375860045,1753763450607,-460.0,0.00020821,2]
[375860046,1753763450617,-400.626578,0.00020821,2]
[375860047,1753763450626,-460.0,0.00020821,2]
[375860048,1753763450637,-1625.4,0.00020821,2]
[375860049,1753763450646,-460.0,0.00020821,2]
[375860050,1753763450655,-3945.19,0.00020821,2]
[375860051,1753763450665,-460.0,0.00020821,2]
[375860052,1753763450674,-603.14,0.00020821,2]
[375860053,1753763450683,-460.0,0.00020821,2]
[375860054,1753763450693,-460.0,0.00020821,2]
[375860055,1753763450702,-460.0,0.00020821,2]
[375860056,1753763450711,-771.0,0.00020821,2]
[375860057,1753763450721,-616.93,0.00020821,2]
[375860058,1753763450730,-2171.93,0.00020821,2]
[375860059,1753763450740,-683.49,0.00020821,2]
[375860060,1753763450750,-169.89901445,0.00020821,2]
[375860061,1753763450760,-460.0,0.00020821,2]
[375860062,1753763450769,-460.0,0.00020821,2]
[375860063,1753763450779,-460.0,0.00020821,2]
[375860064,1753763450789,-460.0,0.00020821,2]
[375860065,1753763450798,-497.05,0.00020821,2]
[375860066,1753763450808,-2404.12,0.00020821,2]
[375860067,1753763450817,-460.0,0.00020821,2]
[375860068,1753763450826,-460.0,0.00020821,2]
[375860069,1753763450835,-564.31,0.00020821,2]
[375860070,1753763450844,-460.0,0.00020821,2]
[375860071,1753763450855,-460.0,0.00020821,2]
[375860072,1753763450864,-460.0,0.00020821,2]
[375860073,1753763450874,-1489.29,0.00020821,2]
[375860074,1753763450884,-460.0,0.00020821,2]
[375860075,1753763450894,-460.0,0.00020821,2]
[375860076,1753763450904,-460.0,0.00020821,2]
[375860077,1753763450915,-632.77,0.00020821,2]
[375860078,1753763450925,-151.29235935,0.00020821,2]
[375860079,1753763450935,-1406.09,0.00020821,2]
[375860080,1753763450944,-460.0,0.00020821,2]
[375860081,1753763450953,-460.0,0.00020821,2]
[375860082,1753763450963,-460.0,0.00020821,2]
[375860083,1753763450972,-706.04,0.00020821,2]
[375860084,1753763450981,-460.0,0.00020821,2]
[375860085,1753763450992,-460.0,0.00020821,2]
[375860086,1753763451002,-1808.84,0.00020821,2]
[375860087,1753763451011,-473.06,0.00020821,2]
[375860088,1753763451020,-460.0,0.00020821,2]
[375860089,1753763451030,-460.0,0.00020821,2]
[375860090,1753763451041,-460.0,0.00020821,2]
[375860091,1753763451050,-1309.65,0.00020821,2]
[375860092,1753763451061,-758.29,0.00020821,2]
[375860093,1753763451071,-460.0,0.00020821,2]
[375860094,1753763451080,-460.0,0.00020821,2]
[375860095,1753763451090,-524.23,0.00020821,2]
[375860096,1753763451099,-617.83,0.00020821,2]
[375860097,1753763451108,-460.0,0.00020821,2]
[375860098,1753763451117,-460.0,0.00020821,2]
[375860099,1753763451127,-1499.41,0.00020821,2]
[375860100,1753763451139,-1439.13,0.00020821,2]
[375860101,1753763451148,-666.39,0.00020821,2]
[375860102,1753763451157,-4336.84,0.00020821,2]
[375860103,1753763451167,-151.0,0.00020821,2]
[375860104,1753763451177,-460.0,0.00020821,2]
[375860105,1753763451186,-1784.78,0.00020821,2]
[375860106,1753763451195,-1674.87,0.00020821,2]
[375860107,1753763451204,-460.0,0.00020821,2]
[375860108,1753763451214,-460.0,0.00020821,2]
[375860109,1753763451223,-683.26,0.00020821,2]
[375860110,1753763451233,-755.63,0.00020821,2]
[375860111,1753763451243,-460.0,0.00020821,2]
[375860112,1753763451252,-460.0,0.00020821,2]
[375860113,1753763451262,-460.0,0.00020821,2]
[375860114,1753763451272,-2065.79,0.00020821,2]
[375860115,1753763451281,-529.18,0.00020821,2]
[375860116,1753763451291,-460.0,0.00020821,2]
[375860117,1753763451301,-460.0,0.00020821,2]
[375860118,1753763451311,-500.0,0.00020873,2]
[375860119,1753763451321,-500.0,0.00020882,2]
[375860120,1753763451331,-300.0,0.00020899,2]
[375860121,1753763451340,-168.0,0.00020916,2]
[375860122,1753763451350,-168.0,0.00020924,2]
[375860123,1753763451360,-168.0,0.00020935,2]
[375860124,1753763451370,-158.572175,0.00020951,2]
[375860125,1753763451379,-224.51,0.0002098,2]
[375860126,1753763451394,-151.0,0.00021,4]
[375860127,1753763451403,-7016.46942201,0.00021008,2]
[375860128,1753763451413,-155.0,0.00021095,2]
[375860129,1753763451423,-220.556044,0.00021095,2]
[375860130,1753763451434,-151.0,0.00021095,2]
[375860131,1753763451443,-151.0,0.00021095,2]
[375860132,1753763451453,-460.0,0.00021095,2]
[375860133,1753763451463,-151.0,0.00021095,2]
[375860134,1753763451472,-460.0,0.00021095,2]
[375860135,1753763451483,-460.0,0.00021095,2]
[375860136,1753763451491,-460.0,0.00021095,2]
[375860137,1753763451626,-520.3,0.00021095,2]
[375860138,1753763451637,-460.0,0.00021095,2]
[375860139,1753763451646,-460.0,0.00021095,2]
[375860140,1753763451655,-460.0,0.00021095,2]
[375860141,1753763451665,-460.0,0.00021095,2]
[375860142,1753763451674,-460.0,0.00021095,2]
[375860143,1753763451683,-460.0,0.00021095,2]
[375860144,1753763451693,-501.61,0.00021095,2]
[375860145,1753763451702,-460.0,0.00021095,2]
[375860146,1753763451712,-460.0,0.00021095,2]
[375860147,1753763451721,-460.0,0.00021095,2]
[375860148,1753763451731,-460.0,0.00021095,2]
[375860149,1753763451740,-460.0,0.00021095,2]
[375860150,1753763451750,-514.06,0.00021095,2]
[375860151,1753763451760,-151.0,0.00021095,2]
[375860152,1753763451769,-460.0,0.00021095,2]
[375860153,1753763451779,-460.0,0.00021095,2]
[375860154,1753763451790,-226.48,0.00021095,2]
[375860155,1753763451801,-460.0,0.00021095,2]
[375860156,1753763451812,-1625.4,0.00021095,2]
[375860157,1753763451822,-460.0,0.00021095,2]
[375860158,1753763451832,-3945.19,0.00021095,2]
[375860159,1753763451842,-460.0,0.00021095,2]
[375860160,1753763451851,-151.0,0.00021095,2]
[375860161,1753763451860,-152.095543,0.00021095,2]
[375860162,1753763451870,-151.0,0.00021095,2]
[375860163,1753763451879,-603.14,0.00021095,2]
[375860164,1753763451890,-151.0,0.00021095,2]
[375860165,1753763451899,-460.0,0.00021095,2]
[375860166,1753763451908,-460.0,0.00021095,2]
[375860167,1753763451917,-460.0,0.00021095,2]
[375860168,1753763451928,-771.0,0.00021095,2]
[375860169,1753763451938,-616.93,0.00021095,2]
[375860170,1753763451947,-2171.93,0.00021095,2]
[375860171,1753763451956,-683.49,0.00021095,2]
[375860172,1753763451966,-460.0,0.00021095,2]
[375860173,1753763451975,-460.0,0.00021095,2]
[375860174,1753763451984,-467.90495523,0.00021095,2]
[375860175,1753763451994,-460.0,0.00021095,2]
[375860176,1753763452004,-152.910834,0.00021095,2]
[375860177,1753763452014,-497.05,0.00021095,2]
[375860178,1753763452024,-2404.12,0.00021095,2]
[375860179,1753763452034,-470.02848119,0.00021095,2]
[375860180,1753763452045,-460.0,0.00021095,2]
[375860181,1753763452054,-564.31,0.00021095,2]
[375860182,1753763452063,-460.0,0.00021095,2]
[375860183,1753763452073,-460.0,0.00021095,2]
[375860184,1753763452082,-460.0,0.00021095,2]
[375860185,1753763452091,-1489.29,0.00021095,2]
[375860186,1753763452100,-460.0,0.00021095,2]
[375860187,1753763452110,-151.0,0.00021095,2]
[375860188,1753763452120,-460.0,0.00021095,2]
[375860189,1753763452129,-460.0,0.00021095,2]
[375860190,1753763452140,-151.0,0.00021095,2]
[375860191,1753763452149,-632.77,0.00021095,2]
[375860192,1753763452158,-1406.09,0.00021095,2]
[375860193,1753763452167,-460.0,0.00021095,2]
[375860194,1753763452177,-460.0,0.00021095,2]
[375860195,1753763452186,-460.0,0.00021095,2]
[375860196,1753763452195,-706.04,0.00021095,2]
[375860197,1753763452206,-460.0,0.00021095,2]
[375860198,1753763452217,-460.0,0.00021095,2]
[375860199,1753763452228,-1808.84,0.00021095,2]
[375860200,1753763452238,-473.06,0.00021095,2]
[375860201,1753763452248,-460.0,0.00021095,2]
[375860202,1753763452257,-536.44884136,0.00021095,2]
[375860203,1753763452268,-460.0,0.00021095,2]
[375860204,1753763452278,-151.0,0.00021095,2]
[375860205,1753763452288,-1309.65,0.00021095,2]
[375860206,1753763452297,-758.29,0.00021095,2]
[375860207,1753763452307,-460.0,0.00021095,2]
[375860208,1753763452316,-460.0,0.00021095,2]
[375860209,1753763452326,-524.23,0.00021095,2]
[375860210,1753763452335,-617.83,0.00021095,2]
[375860211,1753763452344,-460.0,0.00021095,2]
[375860212,1753763452354,-460.0,0.00021095,2]
[375860213,1753763452364,-1499.41,0.00021095,2]
[375860214,1753763452373,-1439.13,0.00021095,2]
[375860215,1753763452384,-666.39,0.00021095,2]
[375860216,1753763452396,-4336.84,0.00021095,2]
[375860217,1753763452407,-460.0,0.00021095,2]
[375860218,1753763452418,-1784.78,0.00021095,2]
[375860219,1753763452428,-1674.87,0.00021095,2]
[375860220,1753763452439,-460.0,0.00021095,2]
[375860221,1753763452448,-460.0,0.00021095,2]
[375860222,1753763452458,-683.26,0.00021095,2]
[375860223,1753763452467,-755.63,0.00021095,2]
[375860224,1753763452477,-151.0,0.00021095,2]
[375860225,1753763452487,-460.0,0.00021095,2]
[375860226,1753763452496,-460.0,0.00021095,2]
[375860227,1753763452505,-151.0,0.00021095,2]
[375860228,1753763452515,-553.82322625,0.00021095,2]
[375860229,1753763452525,-2065.79,0.00021095,2]
[375860230,1753763452534,-529.18,0.00021095,2]
[375860231,1753763452543,-460.0,0.00021095,2]
[375860232,1753763452553,-559.077,0.00021096,2]
[375860233,1753763452562,-2000.0,0.00021116,2]
[375860234,1753763452571,-260.0,0.00021126,2]
[375860235,1753763452581,-168.0,0.00021165,2]
[375860236,1753763452591,-3418.01648727,0.00021228,2]
[375860237,1753763452601,-1000.0,0.0002124,2]
[375860238,1753763452609,-1000.0,0.0002124,2]
[375860239,1753763452619,-514.56090527,0.0002124,2]
[375860240,1753763452628,-1000.0,0.0002124,2]
[375860241,1753763452638,-168.0,0.00021253,2]
[375860242,1753763452647,-250.02188203,0.0002127,2]
[375860243,1753763452657,-531.486453,0.00021291,2]
[375860244,1753763452666,-151.0,0.000213,3]
[375860245,1753763452675,-795.5,0.00021329,4]
[375860246,1753763452684,-325.08091824,0.00021368,2]
[375860247,1753763452694,-282.118123,0.00021368,2]
[375860248,1753763452703,-193.529118,0.00021368,2]
[375860249,1753763452713,-193.529118,0.00021368,2]
[375860250,1753763452722,-151.0,0.00021368,2]
[375860251,1753763452731,-460.0,0.00021369,2]
[375860252,1753763452740,-180.427728,0.00021369,2]
[375860253,1753763452750,-180.427728,0.00021369,2]
[375860254,1753763452759,-460.0,0.00021369,2]
[375860255,1753763452768,-460.0,0.00021369,2]
[375860256,1753763452779,-460.0,0.00021369,2]
[375860257,1753763452788,-520.3,0.00021369,2]
[375860258,1753763452797,-460.0,0.00021369,2]
[375860259,1753763452806,-460.0,0.00021369,2]
[375860260,1753763452816,-460.0,0.00021369,2]
[375860261,1753763452825,-460.0,0.00021369,2]
[375860262,1753763452834,-460.0,0.00021369,2]
[375860263,1753763452844,-460.0,0.00021369,2]
[375860264,1753763452853,-460.0,0.00021369,2]
[375860265,1753763452862,-460.0,0.00021369,2]
[375860266,1753763452872,-460.0,0.00021369,2]
[375860267,1753763452881,-460.0,0.00021369,2]
[375860268,1753763452892,-460.0,0.00021369,2]
[375860269,1753763452902,-514.06,0.00021369,2]
[375860270,1753763452911,-460.0,0.00021369,2]
[375860271,1753763452920,-460.0,0.00021369,2]
[375860272,1753763452929,-460.0,0.00021369,2]
[375860273,1753763452939,-1625.4,0.00021369,2]
[375860274,1753763452948,-168.53362723,0.00021369,2]
[375860275,1753763452958,-3945.19,0.00021369,2]
[375860276,1753763452967,-460.0,0.00021369,2]
[375860277,1753763452976,-603.14,0.00021369,2]
[375860278,1753763452985,-460.0,0.00021369,2]
[375860279,1753763452995,-460.0,0.00021369,2]
[375860280,1753763453004,-460.0,0.00021369,2]
[375860281,1753763453014,-771.0,0.00021369,2]
[375860282,1753763453023,-616.93,0.00021369,2]
[375860283,1753763453032,-2171.93,0.00021369,2]
[375860284,1753763453042,-683.49,0.00021369,2]
[375860285,1753763453051,-460.0,0.00021369,2]
[375860286,1753763453061,-460.0,0.00021369,2]
[375860287,1753763453071,-460.0,0.00021369,2]
[375860288,1753763453080,-497.05,0.00021369,2]
[375860289,1753763453089,-2404.12,0.00021369,2]
[375860290,1753763453099,-460.0,0.00021369,2]
[375860291,1753763453109,-564.31,0.00021369,2]
[375860292,1753763453120,-460.0,0.00021369,2]
[375860293,1753763453129,-460.0,0.00021369,2]
[375860294,1753763453140,-460.0,0.00021369,2]
[375860295,1753763453149,-1489.29,0.00021369,2]
[375860296,1753763453159,-460.0,0.00021369,2]
[375860297,1753763453169,-460.0,0.00021369,2]
[375860298,1753763453178,-467.64182818,0.00021369,2]
[375860299,1753763453187,-632.77,0.00021369,2]
[375860300,1753763453197,-1406.09,0.00021369,2]
[375860301,1753763453206,-460.0,0.00021369,2]
[375860302,1753763453216,-460.0,0.00021369,2]
[375860303,1753763453225,-460.0,0.00021369,2]
[375860304,1753763453235,-706.04,0.00021369,2]
[375860305,1753763453245,-460.0,0.00021369,2]
[375860306,1753763453255,-460.0,0.00021369,2]
[375860307,1753763453265,-1808.84,0.00021369,2]
[375860308,1753763453275,-473.06,0.00021369,2]
[375860309,1753763453284,-460.0,0.00021369,2]
[375860310,1753763453294,-460.0,0.00021369,2]
[375860311,1753763453303,-1309.65,0.00021369,2]
[375860312,1753763453313,-758.29,0.00021369,2]
[375860313,1753763453322,-460.0,0.00021369,2]
[375860314,1753763453332,-460.0,0.00021369,2]
[375860315,1753763453342,-524.23,0.00021369,2]
[375860316,1753763453351,-617.83,0.00021369,2]
[375860317,1753763453361,-460.0,0.00021369,2]
[375860318,1753763453370,-460.0,0.00021369,2]
[375860319,1753763453380,-1499.41,0.00021369,2]
[375860320,1753763453394,-1439.13,0.00021369,2]
[375860321,1753763453404,-666.39,0.00021369,2]
[375860322,1753763453414,-4336.84,0.00021369,2]
[375860323,1753763453423,-460.0,0.00021369,2]
[375860324,1753763453433,-1784.78,0.00021369,2]
[375860325,1753763453443,-460.0,0.00021369,2]
[375860326,1753763453452,-1674.87,0.00021369,2]
[375860327,1753763453462,-460.0,0.00021369,2]
[375860328,1753763453473,-683.26,0.00021369,2]
[375860329,1753763453483,-755.63,0.00021369,2]
[375860330,1753763453492,-468.64273921,0.00021369,2]
[375860331,1753763453502,-460.0,0.00021369,2]
[375860332,1753763453512,-2065.79,0.00021369,2]
[375860333,1753763453523,-529.18,0.00021369,2]
[375860334,1753763453540,-2001.0083313,0.000214,2]
[375860335,1753763453549,-85079.78197984,0.000214,2]
[375860336,1753763453559,-1152.26994248,0.000214,2]
[375860337,1753763453569,-151.0,0.000214,2]
[375860338,1753763453579,-168.0,0.0002142,2]
[375860339,1753763453589,-454.76214944,0.00021421,2]
[375860340,1753763453599,-160.0,0.0002143,3]
[375860341,1753763453611,-200.0,0.00021478,15]
[375860342,1753763453620,-200.0,0.00021478,15]
[375860343,1753763453630,-200.0,0.00021478,15]
[375860344,1753763453640,-200.0,0.00021478,15]
[375860345,1753763453650,-320.0,0.00021478,15]
[375860346,1753763453659,-110128.43,0.000215,2]
[375860347,1753763453670,-151.0,0.000215,2]
[375860348,1753763453680,-151.0,0.000215,2]
[375860349,1753763453690,-249.221861,0.000215,2]
[375860350,1753763453699,-151.0,0.000215,2]
[375860351,1753763453709,-151.0,0.000215,2]
[375860352,1753763453719,-151.900902,0.000215,2]
[375860353,1753763453728,-151.0,0.000215,2]
[375860354,1753763453737,-154.062904,0.000215,2]
[375860355,1753763453747,-151.0,0.000215,2]
[375860356,1753763453757,-151.0,0.000215,2]
[375860357,1753763453766,-151.0,0.000215,2]
[375860358,1753763453776,-1203.26,0.000215,2]
[375860359,1753763453785,-151.0,0.000215,2]
[375860360,1753763453794,-151.0,0.000215,2]
[375860361,1753763453803,-151.0,0.000215,2]
[375860362,1753763453813,-274.886701,0.000215,2]
[375860363,1753763453822,-151.0,0.000215,2]
[375860364,1753763453832,-153.861058,0.000215,7]
[375860365,1753763453842,-151.0,0.000215,2]
[375860366,1753763453851,-151.0,0.000215,2]
[375860367,1753763453861,-151.0,0.000215,2]
[375860368,1753763453871,-151.0,0.000215,2]
[375860369,1753763453880,-151.0,0.000215,2]
[375860370,1753763453890,-151.0,0.000215,2]
[375860371,1753763453900,-180.427728,0.000215,2]
[375860372,1753763453911,-180.427728,0.000215,2]
[375860373,1753763453920,-151.0,0.000215,2]
[375860374,1753763453930,-151.0,0.000215,2]
[375860375,1753763453939,-151.0,0.000215,2]
[375860376,1753763453949,-2348.0,0.000215,2]
[375860377,1753763453959,-2348.0,0.000215,2]
[375860378,1753763453968,-2348.0,0.000215,2]
[375860379,1753763453978,-2348.0,0.000215,2]
[375860380,1753763453988,-2348.0,0.000215,2]
[375860381,1753763453997,-2348.0,0.000215,2]
[375860382,1753763454007,-2348.0,0.000215,2]
[375860383,1753763454017,-2348.0,0.000215,2]
[375860384,1753763454026,-2348.0,0.000215,2]
[375860385,1753763454037,-2348.0,0.000215,2]
[375860386,1753763454046,-151.0,0.000215,2]
[375860387,1753763454055,-151.0,0.000215,2]
[375860388,1753763454065,-193.529118,0.000215,2]
[375860389,1753763454074,-193.529118,0.000215,2]
[375860390,1753763454084,-183.027764,0.000215,2]
[375860391,1753763454093,-151.0,0.000215,2]
[375860392,1753763454103,-183.027764,0.000215,2]
[375860393,1753763454226,-151.0,0.000215,2]
[375860394,1753763454249,-151.0,0.000215,2]
[375860395,1753763454259,-400.626578,0.000215,2]
[375860396,1753763454269,-129216.05,0.000215,2]
[375860397,1753763454279,-400.626578,0.000215,2]
[375860398,1753763454289,-214.91980558,0.000215,7]
[375860399,1753763454299,-63721.50495973,0.000215,2]
[375860400,1753763454418,-394654.32504027,0.000215,2]
[375860401,1753763454428,-151.0,0.000215,2]
[375860402,1753763454439,-151.0,0.000215,2]
[375860403,1753763454453,-151.0,0.000215,2]
[375860404,1753763454464,-192016.82,0.000215,2]
[375860405,1753763454476,-312.16666667,0.000215,7]
[375860406,1753763454487,-151.0,0.000215,2]
[375860407,1753763454496,-12637.12721421,0.000215,7]
[375860408,1753763454506,-160.0,0.000215,7]
[375860409,1753763454518,-151.0,0.000215,2]
[375860410,1753763454527,-151.0,0.000215,2]
[375860411,1753763454537,-997.78256394,0.000215,2]
[375860412,1753763454547,-152.227659,0.000215,2]
[375860413,1753763454558,-151.0,0.000215,2]
[375860414,1753763454567,-151.0,0.000215,2]
[375860415,1753763454577,-151.0,0.000215,2]
[375860416,1753763454587,-151.0,0.000215,2]
[375860417,1753763454596,-151.0,0.000215,2]
[375860418,1753763454607,-151.0,0.000215,2]
[375860419,1753763454616,-151.0,0.000215,2]
[375860420,1753763454626,-151.0,0.000215,2]
[375860421,1753763454635,-430.1392862,0.00021562,2]
[375860422,1753763454644,-430.1392862,0.00021562,2]
[375860423,1753763454654,-430.1392862,0.00021562,2]
[375860424,1753763454664,-430.1392862,0.00021562,2]
[375860425,1753763454674,-151.0,0.00021562,2]
[375860426,1753763454684,-151.0,0.00021562,2]
[375860427,1753763454696,-160.0,0.0002158,4]
[375860428,1753763454705,-168.0,0.00021584,2]
[375860429,1753763454714,-460.0,0.00021643,2]
[375860430,1753763454725,-460.0,0.00021643,2]
[375860431,1753763454737,-460.0,0.00021643,2]
[375860432,1753763454746,-460.0,0.00021643,2]
[375860433,1753763454755,-520.3,0.00021643,2]
[375860434,1753763454765,-529.44,0.00021643,2]
[375860435,1753763454775,-460.0,0.00021643,2]
[375860436,1753763454784,-460.0,0.00021643,2]
[375860437,1753763454794,-460.0,0.00021643,2]
[375860438,1753763454805,-460.0,0.00021643,2]
[375860439,1753763454814,-460.0,0.00021643,2]
[375860440,1753763454825,-460.0,0.00021643,2]
[375860441,1753763454834,-460.0,0.00021643,2]
[375860442,1753763454843,-460.0,0.00021643,2]
[375860443,1753763454853,-460.0,0.00021643,2]
[375860444,1753763454864,-596.45177322,0.00021643,2]
[375860445,1753763454874,-514.06,0.00021643,2]
[375860446,1753763454884,-460.0,0.00021643,2]
[375860447,1753763454894,-471.95095582,0.00021643,2]
[375860448,1753763454903,-460.0,0.00021643,2]
[375860449,1753763454913,-1625.4,0.00021643,2]
[375860450,1753763454925,-3945.19,0.00021643,2]
[375860451,1753763454934,-460.0,0.00021643,2]
[375860452,1753763454944,-603.14,0.00021643,2]
[375860453,1753763454953,-460.0,0.00021643,2]
[375860454,1753763454963,-377.51059027,0.00021643,2]
[375860455,1753763454972,-460.0,0.00021643,2]
[375860456,1753763454981,-771.0,0.00021643,2]
[375860457,1753763454990,-616.93,0.00021643,2]
[375860458,1753763454999,-2171.93,0.00021643,2]
[375860459,1753763455008,-683.49,0.00021643,2]
[375860460,1753763455018,-460.0,0.00021643,2]
[375860461,1753763455027,-460.0,0.00021643,2]
[375860462,1753763455037,-460.0,0.00021643,2]
[375860463,1753763455046,-497.05,0.00021643,2]
[375860464,1753763455055,-2404.12,0.00021643,2]
[375860465,1753763455064,-460.0,0.00021643,2]
[375860466,1753763455074,-564.31,0.00021643,2]
[375860467,1753763455083,-460.0,0.00021643,2]
[375860468,1753763455093,-460.0,0.00021643,2]
[375860469,1753763455103,-460.0,0.00021643,2]
[375860470,1753763455112,-1489.29,0.00021643,2]
[375860471,1753763455122,-460.0,0.00021643,2]
[375860472,1753763455131,-460.0,0.00021643,2]
[375860473,1753763455141,-632.77,0.00021643,2]
[375860474,1753763455150,-1406.09,0.00021643,2]
[375860475,1753763455160,-460.0,0.00021643,2]
[375860476,1753763455169,-460.0,0.00021643,2]
[375860477,1753763455179,-460.0,0.00021643,2]